[Event "MČR v bleskovém šachu družstev 2019"]
[Site "Teplice, Czech Republic"]
[Date "2019.09.14"]
[Round "5.7"]
[White "Dolezal, Radoslav"]
[Black "Cech, Pavel"]
[Result "1-0"]
[TimeControl "3 mim. + 2 s"]
[WhiteTitle "IM"]
[BlackTitle "IM"]
[WhiteFideId "304735"]
[WhiteElo "2359"]
[BlackElo "2387"]

1. d4 {[%clk 00:03:01]} {[%emt 00:00:02]} d5 {[%clk 00:03:01]} {[%emt
00:00:04]} 2. Nf3 {[%clk 00:03:01]} {[%emt 00:00:01]} Nf6 {[%clk 00:03:02]} 3.
c4 {[%clk 00:03:02]} {[%emt 00:00:02]} c6 {[%clk 00:03:03]} 4. e3 {[%clk
00:03:02]} {[%emt 00:00:03]} Bf5 {[%clk 00:03:04]} {[%emt 00:00:01]} 5. Qb3
{[%clk 00:02:50]} {[%emt 00:00:14]} Qc7 {[%clk 00:02:35]} {[%emt 00:00:31]} 6.
cxd5 {[%clk 00:02:47]} {[%emt 00:00:05]} cxd5 {[%clk 00:02:27]} {[%emt
00:00:10]} 7. Nc3 {[%clk 00:02:48]} {[%emt 00:00:01]} e6 {[%clk 00:02:17]}
{[%emt 00:00:11]} 8. Bd2 {[%clk 00:02:21]} {[%emt 00:00:28]} Nc6 {[%clk
00:02:13]} {[%emt 00:00:06]} 9. Rc1 {[%clk 00:02:21]} {[%emt 00:00:02]} Be7
{[%clk 00:02:07]} {[%emt 00:00:08]} 10. Be2 {[%clk 00:01:21]} {[%emt 00:01:03]}
O-O {[%clk 00:02:06]} {[%emt 00:00:02]} 11. O-O {[%clk 00:01:21]} {[%emt
00:00:02]} Qb6 {[%clk 00:01:29]} {[%emt 00:00:39]} 12. Qxb6 {[%clk 00:00:35]}
{[%emt 00:00:49]} axb6 {[%clk 00:01:30]} {[%emt 00:00:01]} 13. a3 {[%clk
00:00:36]} {[%emt 00:00:01]} Na5 {[%clk 00:01:16]} {[%emt 00:00:15]} 14. Nb5
{[%clk 00:00:37]} {[%emt 00:00:01]} Rac8 {[%clk 00:00:44]} {[%emt 00:00:34]} 15.
Bxa5 {[%clk 00:00:30]} {[%emt 00:00:09]} bxa5 {[%clk 00:00:44]} {[%emt
00:00:03]} 16. Ne5 {[%clk 00:00:31]} Ne4 {[%clk 00:00:33]} {[%emt 00:00:12]} 17.
Rfd1 {[%clk 00:00:15]} {[%emt 00:00:18]} Rfd8 {[%clk 00:00:25]} {[%emt
00:00:10]} 18. Nd3 {[%clk 00:00:11]} {[%emt 00:00:07]} b6 {[%clk 00:00:16]}
{[%emt 00:00:12]} 19. f3 {[%clk 00:00:11]} {[%emt 00:00:01]} Nf6 {[%clk
00:00:16]} {[%emt 00:00:01]} 20. Kf2 {[%clk 00:00:12]} {[%emt 00:00:01]} Bg6
{[%clk 00:00:17]} {[%emt 00:00:01]} 21. Ne5 {[%clk 00:00:12]} {[%emt 00:00:02]}
Kf8 {[%clk 00:00:17]} {[%emt 00:00:03]} 22. Nc6 {[%clk 00:00:05]} {[%emt
00:00:09]} Rd7 {[%clk 00:00:15]} {[%emt 00:00:02]} 23. Nxe7 {[%clk 00:00:05]}
{[%emt 00:00:04]} Rxc1 {[%clk 00:00:16]} {[%emt 00:00:01]} 24. Nxg6+ {[%clk
00:00:06]} {[%emt 00:00:01]} 1-0

[Event "MČR v bleskovém šachu družstev 2019"]
[Site "Teplice, Czech Republic"]
[Date "2019.09.14"]
[Round "5.8"]
[White "Sodoma, Jan"]
[Black "Postupa, Pavel"]
[Result "1-0"]
[TimeControl "3 mim. + 2 s"]
[WhiteTitle "IM"]
[BlackFideId "326410"]
[WhiteElo "2193"]
[BlackElo "2184"]

1. Nf3 {[%clk 00:03:02]} {[%emt 00:00:02]} Nf6 {[%clk 00:03:03]} {[%emt
00:00:02]} 2. c4 {[%clk 00:03:02]} {[%emt 00:00:01]} g6 {[%clk 00:03:01]}
{[%emt 00:00:04]} 3. b3 {[%clk 00:03:03]} {[%emt 00:00:01]} Bg7 {[%clk
00:03:02]} {[%emt 00:00:01]} 4. Bb2 {[%clk 00:03:04]} c5 {[%clk 00:03:03]}
{[%emt 00:00:03]} 5. g3 {[%clk 00:03:02]} {[%emt 00:00:04]} b6 {[%clk
00:03:04]} {[%emt 00:00:01]} 6. Bg2 {[%clk 00:03:02]} {[%emt 00:00:02]} Bb7
{[%clk 00:03:05]} 7. O-O {[%clk 00:03:01]} {[%emt 00:00:02]} O-O {[%clk
00:03:05]} {[%emt 00:00:02]} 8. d4 {[%clk 00:03:02]} {[%emt 00:00:01]} cxd4
{[%clk 00:03:03]} {[%emt 00:00:04]} 9. Qxd4 {[%clk 00:03:02]} {[%emt 00:00:01]}
d6 {[%clk 00:02:54]} {[%emt 00:00:11]} 10. Rd1 {[%clk 00:02:56]} {[%emt
00:00:08]} Nbd7 {[%clk 00:02:54]} {[%emt 00:00:03]} 11. Nc3 {[%clk 00:02:42]}
{[%emt 00:00:16]} Ne4 {[%clk 00:02:40]} {[%emt 00:00:16]} 12. Qe3 {[%clk
00:02:41]} {[%emt 00:00:03]} Nxc3 {[%clk 00:02:40]} {[%emt 00:00:02]} 13. Bxc3
{[%clk 00:02:41]} {[%emt 00:00:01]} Bxc3 {[%clk 00:02:40]} {[%emt 00:00:02]} 14.
Qxc3 {[%clk 00:02:42]} {[%emt 00:00:01]} Rc8 {[%clk 00:02:41]} {[%emt
00:00:01]} 15. Rac1 {[%clk 00:02:36]} {[%emt 00:00:08]} Bxf3 {[%clk 00:02:35]}
{[%emt 00:00:08]} 16. Qxf3 {[%clk 00:02:30]} {[%emt 00:00:08]} Qc7 {[%clk
00:02:28]} {[%emt 00:00:08]} 17. Bh3 {[%clk 00:02:30]} {[%emt 00:00:03]} Rcd8
{[%clk 00:02:04]} {[%emt 00:00:26]} 18. Bxd7 {[%clk 00:02:26]} {[%emt
00:00:05]} Rxd7 {[%clk 00:02:05]} {[%emt 00:00:01]} 19. Rc3 {[%clk 00:02:27]}
{[%emt 00:00:02]} Rdd8 {[%clk 00:01:43]} {[%emt 00:00:23]} 20. h4 {[%clk
00:02:18]} {[%emt 00:00:11]} Qc5 {[%clk 00:01:42]} {[%emt 00:00:02]} 21. Rd5
{[%clk 00:02:10]} {[%emt 00:00:10]} Qc6 {[%clk 00:01:36]} {[%emt 00:00:08]} 22.
Rcd3 {[%clk 00:01:33]} {[%emt 00:00:39]} Rfe8 {[%clk 00:01:32]} {[%emt
00:00:06]} 23. h5 {[%clk 00:01:18]} {[%emt 00:00:18]} e6 {[%clk 00:01:21]}
{[%emt 00:00:13]} 24. R5d4 {[%clk 00:00:24]} {[%emt 00:00:56]} Qxf3 {[%clk
00:01:22]} {[%emt 00:00:02]} 25. exf3 {[%clk 00:00:21]} {[%emt 00:00:04]} Kf8
{[%clk 00:01:22]} {[%emt 00:00:02]} 26. Rxd6 {[%clk 00:00:21]} {[%emt
00:00:03]} Rxd6 {[%clk 00:01:23]} 27. Rxd6 {[%clk 00:00:22]} {[%emt 00:00:02]}
Ke7 {[%clk 00:01:24]} 28. Rd4 {[%clk 00:00:20]} {[%emt 00:00:04]} gxh5 {[%clk
00:01:23]} {[%emt 00:00:04]} 29. Kg2 {[%clk 00:00:19]} {[%emt 00:00:03]} Rc8
{[%clk 00:01:10]} {[%emt 00:00:14]} 30. Kh3 {[%clk 00:00:20]} {[%emt 00:00:02]}
Rc5 {[%clk 00:01:11]} {[%emt 00:00:01]} 31. Kh4 {[%clk 00:00:21]} {[%emt
00:00:01]} Rf5 {[%clk 00:01:10]} {[%emt 00:00:03]} 32. f4 {[%clk 00:00:22]}
{[%emt 00:00:01]} a6 {[%clk 00:01:09]} {[%emt 00:00:03]} 33. Re4 {[%clk
00:00:22]} {[%emt 00:00:02]} Kd6 {[%clk 00:01:06]} {[%emt 00:00:05]} 34. Rd4+
{[%clk 00:00:18]} {[%emt 00:00:05]} Kc7 {[%clk 00:01:05]} {[%emt 00:00:03]} 35.
Rd3 {[%clk 00:00:16]} {[%emt 00:00:04]} Ra5 {[%clk 00:01:06]} {[%emt 00:00:02]}
36. a4 {[%clk 00:00:15]} {[%emt 00:00:03]} Rf5 {[%clk 00:01:07]} 37. b4 {[%clk
00:00:13]} {[%emt 00:00:05]} a5 {[%clk 00:01:04]} {[%emt 00:00:05]} 38. bxa5
{[%clk 00:00:08]} {[%emt 00:00:07]} Rxa5 {[%clk 00:01:03]} {[%emt 00:00:03]} 39.
Re3 {[%clk 00:00:07]} {[%emt 00:00:03]} Rxa4 {[%clk 00:01:03]} {[%emt
00:00:02]} 40. Kxh5 {[%clk 00:00:07]} {[%emt 00:00:02]} Rxc4 {[%clk 00:01:04]}
41. Kh6 {[%clk 00:00:08]} Rc5 {[%clk 00:01:02]} {[%emt 00:00:04]} 42. Kxh7
{[%clk 00:00:09]} {[%emt 00:00:01]} b5 {[%clk 00:01:03]} 43. Kg7 {[%clk
00:00:10]} {[%emt 00:00:01]} Rf5 {[%clk 00:01:04]} {[%emt 00:00:01]} 44. Re4
{[%clk 00:00:10]} {[%emt 00:00:02]} Kc6 {[%clk 00:01:03]} {[%emt 00:00:03]} 45.
g4 {[%clk 00:00:11]} Rc5 {[%clk 00:00:59]} {[%emt 00:00:06]} 46. Kxf7 {[%clk
00:00:12]} {[%emt 00:00:01]} Kd5 {[%clk 00:01:00]} {[%emt 00:00:02]} 47. Re5+
{[%clk 00:00:13]} {[%emt 00:00:01]} Kd4 {[%clk 00:01:00]} {[%emt 00:00:02]} 48.
Rxc5 {[%clk 00:00:13]} {[%emt 00:00:01]} Kxc5 {[%clk 00:01:01]} 49. g5 {[%clk
00:00:14]} {[%emt 00:00:02]} b4 {[%clk 00:00:56]} {[%emt 00:00:07]} 50. g6
{[%clk 00:00:14]} {[%emt 00:00:02]} b3 {[%clk 00:00:57]} 51. g7 {[%clk
00:00:15]} {[%emt 00:00:03]} b2 {[%clk 00:00:58]} 52. g8=Q {[%clk 00:00:15]}
{[%emt 00:00:03]} b1=Q {[%clk 00:00:58]} {[%emt 00:00:01]} 53. Qc8+ {[%clk
00:00:11]} {[%emt 00:00:05]} Kd4 {[%clk 00:00:58]} {[%emt 00:00:02]} 54. Qd7+
{[%clk 00:00:12]} {[%emt 00:00:02]} Kc5 {[%clk 00:00:57]} {[%emt 00:00:03]} 55.
Qc7+ {[%clk 00:00:10]} {[%emt 00:00:04]} Kd5 {[%clk 00:00:54]} {[%emt
00:00:04]} 56. Qe5+ {[%clk 00:00:11]} {[%emt 00:00:02]} Kc4 {[%clk 00:00:53]}
{[%emt 00:00:03]} 57. Qxe6+ {[%clk 00:00:12]} {[%emt 00:00:02]} Kd4 {[%clk
00:00:54]} {[%emt 00:00:01]} 58. f5 {[%clk 00:00:12]} {[%emt 00:00:02]} Qb7+
{[%clk 00:00:51]} {[%emt 00:00:04]} 59. Kg6 {[%clk 00:00:12]} {[%emt 00:00:02]}
Qg2+ {[%clk 00:00:51]} {[%emt 00:00:02]} 60. Kf7 {[%clk 00:00:12]} {[%emt
00:00:02]} Qh3 {[%clk 00:00:46]} {[%emt 00:00:07]} 61. Qe3+ {[%clk 00:00:10]}
{[%emt 00:00:05]} Kd5 {[%emt 00:00:10]} 1-0

[Event "MČR v bleskovém šachu družstev 2019"]
[Site "Teplice, Czech Republic"]
[Date "2019.09.14"]
[Round "5.9"]
[White "Rubes, Jan"]
[Black "Istona, Martin"]
[Result "1-0"]
[TimeControl "3 mim. + 2 s"]
[WhiteTitle "FM"]
[BlackTitle "FM"]
[WhiteFideId "338176"]
[BlackFideId "14923475"]
[WhiteElo "2316"]
[BlackElo "2078"]

1. Nf3 {[%clk 00:03:02]} {[%emt 00:00:01]} c5 {[%clk 00:03:02]} {[%emt
00:00:02]} 2. c4 {[%clk 00:03:00]} {[%emt 00:00:03]} g6 {[%clk 00:03:02]}
{[%emt 00:00:03]} 3. d4 {[%clk 00:02:59]} {[%emt 00:00:03]} cxd4 {[%clk
00:03:02]} {[%emt 00:00:01]} 4. Nxd4 {[%clk 00:03:00]} {[%emt 00:00:01]} Bg7
{[%clk 00:03:04]} 5. e4 {[%clk 00:03:00]} {[%emt 00:00:02]} Nc6 {[%clk
00:03:04]} {[%emt 00:00:02]} 6. Be3 {[%clk 00:03:01]} Nf6 {[%clk 00:03:05]}
{[%emt 00:00:01]} 7. Nc3 {[%clk 00:03:02]} d6 {[%clk 00:03:04]} {[%emt
00:00:04]} 8. Be2 {[%clk 00:03:03]} {[%emt 00:00:01]} O-O {[%clk 00:03:05]}
{[%emt 00:00:01]} 9. O-O {[%clk 00:03:03]} {[%emt 00:00:02]} Nxd4 {[%clk
00:03:06]} {[%emt 00:00:02]} 10. Bxd4 {[%clk 00:03:04]} {[%emt 00:00:01]} Bd7
{[%clk 00:03:07]} 11. h3 {[%clk 00:02:59]} {[%emt 00:00:07]} a5 {[%clk
00:03:00]} {[%emt 00:00:09]} 12. Qc2 {[%clk 00:02:57]} {[%emt 00:00:04]} a4
{[%clk 00:02:36]} {[%emt 00:00:27]} 13. Rad1 {[%clk 00:02:14]} {[%emt
00:00:44]} Qa5 {[%clk 00:02:30]} {[%emt 00:00:08]} 14. Rfe1 {[%clk 00:02:06]}
{[%emt 00:00:10]} Bc6 {[%clk 00:02:01]} {[%emt 00:00:31]} 15. Nd5 {[%clk
00:02:01]} {[%emt 00:00:07]} Bxd5 {[%clk 00:01:27]} {[%emt 00:00:36]} 16. exd5
{[%clk 00:02:01]} {[%emt 00:00:02]} Nd7 {[%clk 00:01:05]} {[%emt 00:00:24]} 17.
Bxg7 {[%clk 00:02:00]} {[%emt 00:00:04]} Kxg7 {[%clk 00:01:06]} 18. Bf1 {[%clk
00:02:01]} {[%emt 00:00:01]} Rfe8 {[%clk 00:01:07]} {[%emt 00:00:01]} 19. Re3
{[%clk 00:02:02]} Nc5 {[%clk 00:00:22]} {[%emt 00:00:47]} 20. Rde1 {[%clk
00:01:47]} {[%emt 00:00:18]} e5 {[%clk 00:00:22]} {[%emt 00:00:01]} 21. dxe6
{[%clk 00:01:49]} {[%emt 00:00:01]} fxe6 {[%clk 00:00:15]} {[%emt 00:00:13]} 22.
h4 {[%clk 00:01:30]} {[%emt 00:00:20]} e5 {[%clk 00:00:09]} {[%emt 00:00:08]}
23. h5 {[%clk 00:01:30]} {[%emt 00:00:02]} Re6 {[%clk 00:00:11]} 24. Rg3 {[%clk
00:01:27]} {[%emt 00:00:06]} Rf8 {[%clk 00:00:08]} {[%emt 00:00:05]} 25. hxg6
{[%clk 00:01:14]} {[%emt 00:00:14]} hxg6 {[%clk 00:00:05]} {[%emt 00:00:04]} 26.
Ree3 {[%clk 00:00:59]} {[%emt 00:00:17]} Qd8 {[%clk 00:00:03]} {[%emt
00:00:05]} 27. Rg4 {[%clk 00:00:54]} {[%emt 00:00:07]} Rff6 {[%clk 00:00:00]}
{[%emt 00:00:04]} 1-0

[Event "MČR v bleskovém šachu družstev 2019"]
[Site "Teplice, Czech Republic"]
[Date "2019.09.14"]
[Round "5.10"]
[White "Srba, Milan"]
[Black "Hadraba, Vladimir"]
[Result "0-1"]
[TimeControl "3 mim. + 2 s"]
[WhiteFideId "321575"]
[BlackFideId "301663"]
[WhiteElo "2195"]
[BlackElo "2095"]

1. e4 {[%clk 00:03:03]} c5 {[%clk 00:03:03]} {[%emt 00:00:02]} 2. Nf3 {[%clk
00:03:03]} {[%emt 00:00:01]} e6 {[%clk 00:03:04]} 3. d4 {[%clk 00:03:04]}
{[%emt 00:00:02]} cxd4 {[%clk 00:03:05]} {[%emt 00:00:01]} 4. Nxd4 {[%clk
00:03:05]} {[%emt 00:00:01]} a6 {[%clk 00:03:06]} 5. Bd3 {[%clk 00:03:05]}
{[%emt 00:00:03]} Bc5 {[%clk 00:03:03]} {[%emt 00:00:05]} 6. Nb3 {[%clk
00:03:04]} {[%emt 00:00:03]} Be7 {[%clk 00:03:04]} 7. Qg4 {[%clk 00:02:52]}
{[%emt 00:00:14]} Bf6 {[%clk 00:02:58]} {[%emt 00:00:08]} 8. f4 {[%clk
00:02:42]} {[%emt 00:00:12]} d6 {[%clk 00:02:55]} {[%emt 00:00:04]} 9. Nc3
{[%clk 00:02:40]} {[%emt 00:00:05]} Nc6 {[%clk 00:02:49]} {[%emt 00:00:08]} 10.
Be3 {[%clk 00:02:22]} {[%emt 00:00:19]} g6 {[%clk 00:02:42]} {[%emt 00:00:09]}
11. O-O {[%clk 00:02:06]} {[%emt 00:00:18]} Bg7 {[%clk 00:02:42]} {[%emt
00:00:02]} 12. Rae1 {[%clk 00:02:06]} {[%emt 00:00:02]} Nf6 {[%clk 00:02:39]}
{[%emt 00:00:06]} 13. Qh4 {[%clk 00:02:00]} {[%emt 00:00:08]} Nh5 {[%clk
00:02:15]} {[%emt 00:00:27]} 14. Qh3 {[%clk 00:01:27]} {[%emt 00:00:35]} e5
{[%clk 00:01:50]} {[%emt 00:00:26]} 15. f5 {[%clk 00:01:25]} {[%emt 00:00:04]}
Nf4 {[%clk 00:01:40]} {[%emt 00:00:12]} 16. Bxf4 {[%clk 00:01:09]} {[%emt
00:00:18]} exf4 {[%clk 00:01:40]} {[%emt 00:00:01]} 17. Rxf4 {[%clk 00:01:02]}
{[%emt 00:00:09]} O-O {[%clk 00:01:21]} {[%emt 00:00:21]} 18. Nd5 {[%clk
00:00:58]} {[%emt 00:00:05]} Ne5 {[%clk 00:00:52]} {[%emt 00:00:32]} 19. Rh4
{[%clk 00:00:38]} {[%emt 00:00:22]} h5 {[%clk 00:00:47]} {[%emt 00:00:07]} 20.
Qg3 {[%clk 00:00:13]} {[%emt 00:00:27]} Nxd3 {[%clk 00:00:33]} {[%emt
00:00:16]} 21. cxd3 {[%clk 00:00:14]} {[%emt 00:00:01]} Be5 {[%emt 00:00:02]}
22. Qf3 {[%clk 00:00:12]} {[%emt 00:00:02]} Qxh4 {[%clk 00:00:33]} {[%emt
00:00:04]} 23. g3 {[%clk 00:00:08]} {[%emt 00:00:06]} Qg5 {[%clk 00:00:28]}
{[%emt 00:00:06]} 24. d4 {[%clk 00:00:08]} {[%emt 00:00:02]} Bg7 {[%clk
00:00:27]} {[%emt 00:00:04]} 25. f6 {[%clk 00:00:08]} {[%emt 00:00:02]} Bh6
{[%clk 00:00:27]} {[%emt 00:00:01]} 26. h4 {[%clk 00:00:03]} {[%emt 00:00:07]}
Qg4 {[%clk 00:00:27]} {[%emt 00:00:02]} 27. Qf2 {[%clk 00:00:04]} {[%emt
00:00:01]} Be6 {[%clk 00:00:26]} {[%emt 00:00:03]} 28. Ne7+ {[%clk 00:00:04]}
{[%emt 00:00:02]} Kh7 {[%clk 00:00:28]} {[%emt 00:00:01]} 29. d5 {[%clk
00:00:05]} {[%emt 00:00:01]} Rae8 {[%clk 00:00:19]} {[%emt 00:00:11]} 30. dxe6
{[%clk 00:00:05]} {[%emt 00:00:02]} Qxe6 {[%clk 00:00:19]} {[%emt 00:00:01]} 31.
Nd4 {[%clk 00:00:06]} {[%emt 00:00:01]} Qe5 {[%clk 00:00:19]} {[%emt 00:00:02]}
32. Nf3 {[%clk 00:00:06]} {[%emt 00:00:02]} Qc5 {[%clk 00:00:19]} {[%emt
00:00:03]} 33. Qxc5 {[%clk 00:00:05]} {[%emt 00:00:03]} dxc5 {[%clk 00:00:19]}
34. Nd5 {[%clk 00:00:06]} {[%emt 00:00:02]} Re6 {[%clk 00:00:19]} {[%emt
00:00:02]} 35. Kg2 {[%clk 00:00:06]} {[%emt 00:00:02]} Rd8 {[%clk 00:00:18]}
{[%emt 00:00:03]} 36. Rc1 {[%clk 00:00:07]} {[%emt 00:00:01]} b6 {[%clk
00:00:18]} {[%emt 00:00:02]} 37. a4 {[%clk 00:00:08]} Rxe4 {[%clk 00:00:17]}
{[%emt 00:00:03]} 38. Rd1 {[%clk 00:00:09]} {[%emt 00:00:02]} Rd4 {[%clk
00:00:16]} {[%emt 00:00:03]} 39. Nxd4 {[%clk 00:00:09]} {[%emt 00:00:02]} Rxd5
{[%clk 00:00:17]} {[%emt 00:00:01]} 0-1

[Event "MČR v bleskovém šachu družstev 2019"]
[Site "Teplice, Czech Republic"]
[Date "2019.09.14"]
[Round "5.12"]
[White "Toulec, Stanislav"]
[Black "Krutsky, Martin"]
[Result "0-1"]
[TimeControl "3 mim. + 2 s"]
[WhiteFideId "319023"]
[BlackFideId "361526"]
[WhiteElo "2074"]
[BlackElo "1974"]

1. f4 {[%clk 00:03:03]} d5 {[%clk 00:03:03]} {[%emt 00:00:01]} 2. Nf3 {[%clk
00:03:04]} g6 {[%clk 00:03:04]} {[%emt 00:00:01]} 3. e3 {[%clk 00:03:05]} Bg7
{[%clk 00:03:04]} {[%emt 00:00:02]} 4. d4 {[%clk 00:03:00]} {[%emt 00:00:07]}
f5 {[%clk 00:03:05]} {[%emt 00:00:02]} 5. h4 {[%clk 00:02:51]} {[%emt
00:00:11]} Nf6 {[%clk 00:02:57]} {[%emt 00:00:09]} 6. Nc3 {[%clk 00:02:41]}
{[%emt 00:00:12]} c6 {[%clk 00:02:55]} {[%emt 00:00:04]} 7. Bd2 {[%clk
00:02:42]} {[%emt 00:00:01]} Nbd7 {[%clk 00:02:51]} {[%emt 00:00:06]} 8. Be2
{[%clk 00:02:32]} {[%emt 00:00:13]} Nh5 {[%clk 00:02:27]} {[%emt 00:00:25]} 9.
Rh3 {[%clk 00:02:20]} {[%emt 00:00:14]} Ndf6 {[%clk 00:01:53]} {[%emt
00:00:36]} 10. Ne5 {[%clk 00:02:21]} {[%emt 00:00:02]} O-O {[%clk 00:01:29]}
{[%emt 00:00:25]} 11. Bf3 {[%clk 00:02:14]} {[%emt 00:00:09]} Qb6 {[%clk
00:01:12]} {[%emt 00:00:19]} 12. Na4 {[%clk 00:01:51]} {[%emt 00:00:25]} Qc7
{[%clk 00:01:08]} {[%emt 00:00:06]} 13. Nc5 {[%clk 00:01:39]} {[%emt 00:00:14]}
b6 {[%clk 00:01:06]} {[%emt 00:00:04]} 14. Ncd3 {[%clk 00:01:40]} {[%emt
00:00:01]} Be6 {[%clk 00:00:55]} {[%emt 00:00:13]} 15. b3 {[%clk 00:01:31]}
{[%emt 00:00:10]} Qc8 {[%clk 00:00:36]} {[%emt 00:00:21]} 16. Qe2 {[%clk
00:01:13]} {[%emt 00:00:20]} Ng4 {[%clk 00:00:38]} {[%emt 00:00:01]} 17. O-O-O
{[%clk 00:00:55]} {[%emt 00:00:20]} a5 {[%clk 00:00:31]} {[%emt 00:00:09]} 18.
Nf2 {[%clk 00:00:45]} {[%emt 00:00:12]} Nhf6 {[%clk 00:00:23]} {[%emt
00:00:10]} 19. h5 {[%clk 00:00:26]} {[%emt 00:00:21]} gxh5 {[%clk 00:00:20]}
{[%emt 00:00:05]} 20. Rdh1 {[%clk 00:00:24]} {[%emt 00:00:04]} a4 {[%clk
00:00:21]} 21. b4 {[%clk 00:00:25]} {[%emt 00:00:02]} c5 {[%clk 00:00:19]}
{[%emt 00:00:04]} 22. Rxh5 {[%clk 00:00:12]} {[%emt 00:00:14]} Nxh5 {[%clk
00:00:20]} {[%emt 00:00:01]} 23. Rxh5 {[%clk 00:00:13]} cxb4 {[%clk 00:00:14]}
{[%emt 00:00:09]} 24. Bxb4 {[%clk 00:00:13]} {[%emt 00:00:02]} Qe8 {[%clk
00:00:10]} {[%emt 00:00:05]} 25. Rg5 {[%clk 00:00:12]} {[%emt 00:00:04]} Kh8
{[%clk 00:00:11]} {[%emt 00:00:01]} 26. Nfxg4 {[%clk 00:00:04]} {[%emt
00:00:10]} fxg4 {[%clk 00:00:12]} {[%emt 00:00:01]} 27. Bxg4 {[%clk 00:00:04]}
{[%emt 00:00:01]} Bxg4 {[%clk 00:00:08]} {[%emt 00:00:06]} 28. Nxg4 {[%clk
00:00:05]} {[%emt 00:00:01]} Rf7 {[%emt 00:00:27]} 0-1